[Event "French-ch U16-U18 2024"]
[Site "Agen"]
[Date "2024.04.17"]
[Round "5.8"]
[White "Gaudin, Gauthier"]
[Black "Breuil, Tristan"]
[Result "0-1"]
[ECO "B51"]
[WhiteElo "2036"]
[BlackElo "2281"]
[Annotator "TA"]
[PlyCount "92"]
[EventDate "2024.04.14"]
[EventType "swiss"]
[EventCountry "FRA"]
[SourceTitle "playchess.com"]
[Source "ChessBase"]
[SourceQuality "1"]
[TimeControl "5400+30"]

{[%evp 9,92,14,22,12,25,24,20,16,16,22,49,-9,0,0,12,-7,13,0,0,0,8,-36,-38,-27,-19,-18,0,-16,0,0,-3,-23,-8,-25,-22,-24,-18,-31,-19,-37,-15,-50,-39,-50,-27,-23,-18,-60,-59,-57,-51,-67,-45,-63,-54,-71,-32,-108,-109,-119,-105,-479,-480,-522,-522,-521,-519,-568,-564,-541,-418,-461,-460,-444,-424,-429,-437,-421,-425,-484,-458,-783,-764,-874,-745]} 1. e4 {[%emt 0:00:04]} c5 {[%emt 0:00:51]} 2. Nf3 {[%emt 0:00:08]} d6 {[%emt 0:00:07]} 3. Bb5+ {[%emt 0:00:32]} Nd7 {[%emt 0:00:26]} 4. O-O {[%emt 0:00:54]} Ngf6 {[%emt 0:01:12]} 5. Bd3 {[%emt 0:01:08]} e6 {[%emt 0:05:34]} 6. c3 {[%emt 0:01:16]} Be7 {[%emt 0:00:56]} 7. Bc2 {[%emt 0:00:45]} b5 {[%emt 0:06:18]} 8. d4 {[%emt 0:04:29] The position is equal.} Bb7 {[%emt 0:10:09]} 9. Re1 {[%emt 0:02:58]} Rc8 {[%emt 0:08:19]} 10. a3 {[%emt 0:13:17]} (10. a4 $14) 10... Qc7 $11 {[%emt 0:14:42]} 11. Qe2 {[%emt 0:08:38]} a6 {[%emt 0:09:01]} 12. Nbd2 {[%emt 0:04:26]} O-O {[%emt 0:07:44]} 13. e5 {[%emt 0:10:34]} Nd5 {[%emt 0:04:12]} 14. exd6 {[%emt 0:00:52]} Bxd6 {[%emt 0:02:53] Strongly threatening ...Nf4.} 15. Qe4 {[%emt 0:06:20]} N7f6 {[%emt 0:08:27]} 16. Qh4 {[%emt 0:00:43]} Ne7 {[%emt 0:00:49]} 17. dxc5 {[%emt 0:08:32]} Qxc5 {[%emt 0:00:41]} 18. Nb3 {[%emt 0:03:25]} Qh5 {[%emt 0:01:04]} 19. Qxh5 {[%emt 0:02:06]} Nxh5 {[%emt 0:00:02]} 20. Ng5 {[%emt 0:00:55]} Nf6 {[%emt 0:01:18]} 21. Ne4 {[%emt 0:01:52]} Nxe4 {[%emt 0:02:04]} 22. Bxe4 {[%emt 0:00:02]} Bd5 {[%emt 0:00:01]} 23. Nd2 {[%emt 0:04:01]} Rfd8 {[%emt 0:01:22]} 24. Nf3 {[%emt 0:24:33]} h6 {[%emt 0:02:29]} 25. Bxd5 {[%emt 0:00:00]} Nxd5 {[%emt 0:00:07]} 26. Be3 {[%emt 0:00:00]} Bc5 {[%emt 0:04:02]} 27. Bxc5 {[%emt 0:00:00]} Rxc5 {[%emt 0:00:01]} 28. a4 {[%emt 0:00:00]} b4 {[%emt 0:00:44]} 29. cxb4 {[%emt 0:00:00]} Nxb4 {[%emt 0:00:01]} 30. Re2 {[%emt 0:00:00]} Rdd5 {[%emt 0:03:21]} 31. g3 {[%emt 0:00:00]} e5 {[%emt 0:01:10]} 32. Ra3 {[%emt 0:00:00]} f5 {[%emt 0:01:28]} 33. Kg2 {[%emt 0:00:00]} (33. Rc3 $1 $15) 33... e4 $17 {[%emt 0:01:18]} 34. Ne1 {[%emt 0:00:00] [#]} Rd1 $1 {[%emt 0:01:03] aiming for ...Rcc1. Black is more active.} 35. Rae3 $2 {[%emt 0:01:55][%mdl 8192] Now White is beyond hope.} (35. Rc3 $17 {is more resistant.} Rxc3 36. bxc3) 35... Rcc1 $19 {[%emt 0:01:03]} 36. Rb3 {[%emt 0:02:02]} a5 {[%emt 0:00:40]} ({Inferior is} 36... Rxe1 37. Rxe1 Rxe1 38. Rxb4 $11) 37. Rxb4 {[%emt 0:01:17]} axb4 {[%emt 0:00:01][%mdl 4096] Endgame. KRR-KRN} 38. Nc2 {[%emt 0:00:09]} g5 {[%emt 0:01:34] And now ...g4 would win.} 39. Ne3 {[%emt 0:01:27] [#]} f4 $1 {[%emt 0:02:06]} 40. Nxd1 {[%emt 0:00:03] KRN-KR} (40. gxf4 Re1) 40... f3+ {[%emt 0:00:05] Black is clearly winning.} 41. Kf1 {[%emt 0:00:04] Rd2 is the strong threat.} fxe2+ {[%emt 0:00:04]} 42. Kxe2 {[%emt 0:00:15]} Ra1 {[%emt 0:00:15]} 43. Kd2 {[%emt 0:00:36]} Rxa4 {[%emt 0:00:11]} 44. Kc2 {[%emt 0:00:03]} Ra8 {[%emt 0:00:37]} 45. Ne3 {[%emt 0:00:32]} (45. Kb3 $142 Rd8 46. Ne3) 45... Rf8 {[%emt 0:00:12]} 46. Nd1 {[%emt 0:01:02]} Rf3 {[%emt 0:00:19] Weighted Error Value: White=0.39/Black=0.10 (very precise) .  Loses game:     	White=1     	---        Mistake:       	White=3     	---        Inaccurate:     	White=3     	Black=2      OK:         	White=10    	Black=16     Best:        	White=2     	Black=3      Strong:       	---       	Black=1} 0-1

[Event "French-ch U16-U18 2024"]
[Site "Agen"]
[Date "2024.04.17"]
[Round "5.9"]
[White "Zienkiewicz, Jan"]
[Black "Bustos Salinas, Thomas"]
[Result "1-0"]
[ECO "B12"]
[WhiteElo "2240"]
[BlackElo "1990"]
[Annotator "TA"]
[PlyCount "89"]
[EventDate "2024.04.14"]
[EventType "swiss"]
[EventCountry "FRA"]
[SourceTitle "playchess.com"]
[Source "ChessBase"]
[SourceQuality "1"]
[TimeControl "5400+30"]

{[%evp 9,89,4,18,0,5,8,8,-1,21,13,34,0,29,33,43,43,76,70,68,79,95,101,127,121,120,119,109,117,101,101,177,154,156,162,183,154,210,147,144,142,134,114,128,84,154,122,196,202,282,176,262,177,284,265,254,259,375,125,181,180,168,166,172,152,220,189,174,154,339,134,1095,1095,1574,1522,1237,1202,2815,3246,29966,29965,5310,5304]} 1. e4 {[%emt 0:00:03][%cal Be2e4,Be4e5][%mdl 32]} c6 {[%emt 0:00:07]} 2. d4 {[%emt 0:02:54]} d5 {[%emt 0:00:07]} 3. e5 {[%emt 0:00:05]} c5 {[%emt 0:00:04]} 4. dxc5 {[%emt 0:00:06]} e6 {[%emt 0:00:10]} 5. a3 {[%emt 0:00:07]} Bxc5 {[%emt 0:00:25]} 6. Nf3 {[%emt 0:00:07]} Ne7 {[%emt 0:00:57][%cal Bg8e7,Be7g6,Bg6h4,Bh4f3][%mdl 32]} 7. Bd3 {[%emt 0:00:18]} (7. b4 $5 Bb6 $8 8. Bb5+ Nbc6 9. Bd3 $11) 7... Ng6 {[%emt 0:01:28]} 8. O-O {[%emt 0:10:18] The position is equal.} Nc6 {[%emt 0:01:20]} 9. b4 {[%emt 0:03:27] Hoping for Bxg6.} Bb6 {[%emt 0:05:51]} 10. Re1 {[%emt 0:00:14]} O-O {[%emt 0:13:58]} 11. Bb2 $1 {[%emt 0:04:50]} Bd7 {[%emt 0:10:34]} 12. Nbd2 {[%emt 0:02:48]} Nh4 {[%emt 0:24:09]} 13. c4 {[%emt 0:09:02]} Nxf3+ {[%emt 0:02:01]} 14. Qxf3 {[%emt 0:02:57]} Qg5 {[%emt 0:04:28] Against Qg4} 15. Rad1 $40 {[%emt 0:03:26][%mdl 128] White has strong attack.} Bd4 {[%emt 0:07:01] [#]} 16. Qh3 $1 {[%emt 0:13:50]} Qh6 {[%emt 0:03:29]} 17. Qxh6 {[%emt 0:00:16]} gxh6 {[%emt 0:00:06]} 18. Bxd4 {[%emt 0:00:44]} Nxd4 {[%emt 0:00:06]} 19. cxd5 {[%emt 0:00:19] aiming for d6.} exd5 {[%emt 0:00:29]} (19... Ba4 $16) 20. Nf1 {[%emt 0:00:25]} Nc6 {[%emt 0:08:32]} 21. Ng3 {[%emt 0:02:04]} Kh8 {[%emt 0:08:54]} 22. f4 {[%emt 0:06:06]} Rae8 {[%emt 0:03:29]} (22... Ne7 $16 23. f5 b6) 23. Bc2 {[%emt 0:03:36]} Ne7 {[%emt 0:02:44]} 24. Rd2 {[%emt 0:09:09]} Rc8 {[%emt 0:01:04]} 25. Re3 {[%emt 0:25:49] Prevents Rc3} Bb5 {[%emt 0:00:39]} 26. a4 {[%emt 0:00:00]} Bc4 {[%emt 0:00:35]} (26... Bd7 $142) 27. Nh5 {[%emt 0:00:00] White has more active pieces.} Nc6 {[%emt 0:00:38]} (27... b5 $16 {is a better defense.}) 28. b5 $18 {[%emt 0:00:00]} Nb4 {[%emt 0:00:29]} 29. Bd1 {[%emt 0:00:00]} a5 {[%emt 0:00:29]} (29... a6 $142 30. Nf6 axb5) 30. Nf6 {[%emt 0:00:00]} Rfd8 {[%emt 0:00:16]} (30... Ba2 $142 31. f5 Bb1) 31. Rd4 {[%emt 0:00:00]} Ba2 {[%emt 0:00:25] [#]} 32. f5 $1 {[%emt 0:00:00][%cal Bf4f5,Bf5f6][%mdl 32] e6 is the strong threat.} Rc7 {[%emt 0:00:52]} (32... Rc4 $142 33. Rd2 Rc7) 33. Rd2 $2 {[%emt 0:00:00]} (33. Rg4 $18 {White threatens Reg3 and mate.} Bb1 34. Reg3) 33... Bb1 {[%emt 0:00:20]} (33... d4 $16 34. Rh3 Bb1) 34. g4 {[%emt 0:00:00]} Kg7 {[%emt 0:00:22]} 35. Nh5+ {[%emt 0:00:00]} Kf8 {[%emt 0:00:18]} 36. Nf4 {[%emt 0:00:00]} Ke7 {[%emt 0:00:57]} (36... Rc4 $16 {was necessary.} 37. e6 Ke7 38. f6+ Ke8) 37. f6+ {[%emt 0:00:00]} Ke8 {[%emt 0:00:11]} 38. Bb3 {[%emt 0:01:11]} Be4 $2 {[%emt 0:00:45] [#]} (38... Rdc8 $16 {might work better.} 39. b6 (39. Bxd5 Nxd5 40. Rxd5 Rc4 $18) 39... Rc1+ 40. Kf2 Be4 41. Nxd5 (41. Bxd5 R8c2 $18) 41... Bxd5) 39. Kf2 $2 {[%emt 0:00:44]} (39. e6 $1 $18 {is the precise move to win.} Rc1+ 40. Kf2 fxe6 41. Rxe4 (41. Nxe6 Rdc8 $18) 41... dxe4 42. f7+ Kxf7 43. Rxd8) 39... Rc1 $2 {[%emt 0:00:23][%mdl 8192] [#] Loses the game.} (39... Rdc8 $16 40. Ke2 (40. Bxd5 $2 {loses.} Bxd5 41. Rxd5 Rc4 $19) 40... Rc5) 40. Rxe4 $1 {[%emt 0:00:53][%mdl 512]} dxe4 {[%emt 0:00:37] [#]} (40... Rc3 41. Bxd5) 41. Bxf7+ $1 {[%emt 0:00:53][%mdl 512]} Kxf7 {[%emt 0:00:10]} 42. Rxd8 {[%emt 0:00:04]} Rc7 {[%emt 0:00:49] Against Rd7+} 43. b6 {[%emt 0:01:50]} Rc3 {[%emt 0:00:16]} 44. Rd7+ {[%emt 0:00:25]} Ke8 {[%emt 0:00:07]} 45. f7+ {[%emt 0:01:50] Weighted Error Value: White=0.27 (precise) /Black=0.46.  Loses game:     	---       	Black=2      Missed win:     	White=2     	---        Mistake:       	---       	Black=9      Inaccurate:     	White=4     	Black=4      OK:         	White=16    	Black=10     Best:        	---       	Black=1      Strong:       	White=1     	---        Brilliant:      	White=1     	---} 1-0

[Event "French-ch U16-U18 2024"]
[Site "Agen"]
[Date "2024.04.17"]
[Round "5.10"]
[White "Boumrar, Ayrad"]
[Black "Flagiello, Francesco"]
[Result "1/2-1/2"]
[ECO "E05"]
[WhiteElo "2191"]
[BlackElo "1952"]
[Annotator "TA"]
[PlyCount "66"]
[EventDate "2024.04.14"]
[EventType "swiss"]
[EventCountry "FRA"]
[SourceTitle "playchess.com"]
[Source "ChessBase"]
[SourceQuality "1"]
[TimeControl "5400+30"]

{[%evp 21,66,13,16,13,6,4,13,11,9,10,27,26,20,25,26,20,16,6,11,0,13,0,0,9,33,0,0,0,0,0,4,4,12,0,5,0,0,0,0,0,0,0,0,0,0,-32,-27]} 1. d4 {[%emt 0:00:01]} d5 {[%emt 0:00:09]} 2. c4 {[%emt 0:00:05]} e6 {[%emt 0:00:08]} 3. Nf3 {[%emt 0:00:04]} Nf6 {[%emt 0:00:08]} 4. g3 {[%emt 0:00:16]} Be7 {[%emt 0:00:16]} 5. Bg2 {[%emt 0:00:05]} O-O {[%emt 0:00:06]} 6. O-O {[%emt 0:00:04]} dxc4 {[%emt 0:00:21]} 7. Qc2 {[%emt 0:00:06]} a6 {[%emt 0:00:09]} 8. a4 {[%emt 0:00:07]} Bd7 {[%emt 0:00:13]} 9. Qxc4 {[%emt 0:00:43]} Bc6 {[%emt 0:00:28]} 10. Bg5 {[%emt 0:01:06]} Nbd7 {[%emt 0:00:56]} 11. Nc3 {[%emt 0:01:12]} h6 {[%emt 0:01:46]} 12. Bxf6 {[%emt 0:00:18]} Nxf6 {[%emt 0:00:14]} 13. Rfd1 {[%emt 0:00:07]} a5 {[%emt 0:01:48]} 14. Ne5 {[%emt 0:04:35][%cal Bf3e5,Be5d3,Bd3f4][%mdl 32] The position is equal.} Bxg2 {[%emt 0:02:50]} 15. Kxg2 {[%emt 0:01:11]} Ra6 {[%emt 0:12:57]} (15... c6 $5) 16. e3 {[%emt 0:10:28][%cal Be2e3,Be3e4,Be4e5][%mdl 32]} c6 {[%emt 0:07:28]} 17. Qe2 {[%emt 0:03:55]} Bb4 {[%emt 0:05:11]} 18. e4 {[%emt 0:09:59]} Qe7 {[%emt 0:12:49]} 19. Nd3 {[%emt 0:05:35]} Rd8 {[%emt 0:10:53]} 20. Nf4 {[%emt 0:03:39]} Rc8 {[%emt 0:13:32]} 21. Rac1 {[%emt 0:11:11][%cal Ba1c1,Bc1c3,Bc3e3][%mdl 32]} Bxc3 {[%emt 0:12:44]} 22. Rxc3 {[%emt 0:03:29]} Rb6 {[%emt 0:03:38]} 23. e5 {[%emt 0:02:48]} Nd5 {[%emt 0:00:18]} 24. Nxd5 {[%emt 0:00:02]} exd5 {[%emt 0:00:06]} 25. Re3 {[%emt 0:03:53]} c5 {[%emt 0:02:50]} 26. dxc5 {[%emt 0:02:18]} Rxc5 {[%emt 0:00:35]} 27. Red3 {[%emt 0:06:01]} Qd7 {[%emt 0:01:05]} 28. Qf3 {[%emt 0:06:20][%cal Rd3d5]} Qxa4 {[%emt 0:04:19]} ({Reject} 28... Rxb2 $6 29. Rxd5 Rxd5 30. Rxd5 $16) 29. Rxd5 {[%emt 0:00:41]} Rxd5 {[%emt 0:00:19]} 30. Rxd5 {[%emt 0:00:47] [#] Rd8+ would now be deadly.} Qc6 {[%emt 0:00:55]} 31. b3 {[%emt 0:15:06]} Rb5 {[%emt 0:01:40]} 32. Rxb5 {[%emt 0:00:53]} Qxb5 {[%emt 0:00:02]} 33. Qc3 {[%emt 0:09:55]} Qd5+ {[%emt 0:06:07] A rather calm draw.   Weighted Error Value: White=0.06 (flawless) /Black=0.04 (flawless) .  Inaccurate:     	White=2     	---        OK:         	White=5     	Black=8      Best:        	---       	Black=1} 1/2-1/2

[Event "French-ch U16-U18 2024"]
[Site "Agen"]
[Date "2024.04.17"]
[Round "5.11"]
[White "Berezovsky, Fiorina"]
[Black "Deladerriere, Calypso"]
[Result "0-1"]
[ECO "D07"]
[WhiteElo "1848"]
[BlackElo "1935"]
[Annotator "TA"]
[PlyCount "66"]
[EventDate "2024.04.14"]
[EventType "swiss"]
[EventCountry "FRA"]
[SourceTitle "playchess.com"]
[Source "ChessBase"]
[SourceQuality "1"]
[TimeControl "5400+30"]

{[%evp 11,66,29,34,-34,-18,-24,-13,-31,-31,-32,-24,-31,-27,-40,-8,-20,-27,-80,-91,-108,-121,-153,-146,-196,-64,-264,-270,-271,-266,-536,-178,-190,-176,-230,-233,-295,-299,-452,-455,-442,-441,-412,-391,-435,-437,-433,-424,-488,-395,-401,-391,-395,-393,-468,-440,-522,-521]} 1. d4 {[%emt 0:00:06]} d5 {[%emt 0:00:17]} 2. c4 {[%emt 0:00:13]} Nc6 {[%emt 0:00:23]} 3. Nc3 {[%emt 0:00:25]} Nf6 {[%emt 0:00:26]} 4. Nf3 {[%emt 0:00:33]} dxc4 {[%emt 0:00:27]} 5. e4 {[%emt 0:01:07]} Bg4 {[%emt 0:02:45]} 6. d5 {[%emt 0:01:13]} Ne5 {[%emt 0:00:32]} 7. Qd4 {[%emt 0:00:27]} (7. Bf4 $14 Nfd7 8. Qa4 Nxf3+ 9. gxf3 Bxf3 10. Rg1) 7... Nxf3+ $15 {[%emt 0:01:27]} 8. gxf3 {[%emt 0:00:15]} Bxf3 {[%emt 0:00:53]} 9. Rg1 {[%emt 0:00:57] [#] The position is equal.} e5 $1 {[%emt 0:07:47]} 10. Qxc4 {[%emt 0:01:01]} a6 $1 {[%emt 0:03:15] Inhibits Qb5+.} 11. Rg5 {[%emt 0:13:54][%cal Of1h3]} Qd6 {[%emt 0:04:07]} 12. Qa4+ {[%emt 0:09:24]} Nd7 {[%emt 0:03:41]} 13. Bd2 {[%emt 0:04:41]} Rd8 {[%emt 0:08:32]} 14. Rg3 {[%emt 0:07:21]} (14. Qb3 $11) 14... Bh5 $1 $17 {[%emt 0:00:37]} 15. Bh3 {[%emt 0:03:33]} Be7 {[%emt 0:03:56]} 16. Rc1 {[%emt 0:11:42][%cal Oc3d1]} (16. Rxg7 $2 {perishes.} Bg6 17. Bg2 Bf8 18. Rxg6 hxg6 $19 (18... Qxg6 $2 19. Bf1 $19)) 16... O-O {[%emt 0:03:24]} 17. Nd1 {[%emt 0:08:57] [#]} (17. Qb3 $17) 17... c6 {[%emt 0:14:14]} 18. Bxd7 {[%emt 0:05:44] This move loses the game for White.} (18. Ne3 $15 Nc5 (18... Nb6 $2 19. Qb3 $18) 19. Qc2) 18... Qxd7 $19 {[%emt 0:06:11]} ({Less strong is} 18... Rxd7 19. Ne3 Qb8 20. Nf5 $17) 19. Ne3 {[%emt 0:02:03]} Bh4 {[%emt 0:06:50] This pair of bishops is nice.} 20. Rg1 {[%emt 0:01:52]} (20. Bb4) 20... cxd5 $2 {[%emt 0:00:55]} (20... Qh3 21. Qc4 Qf3 (21... Qxh2 $2 22. Qf1 $19)) 21. Qxd7 {[%emt 0:03:11]} Rxd7 {[%emt 0:00:08]} 22. Nf5 {[%emt 0:02:37]} (22. Bb4 $142 Re8 23. exd5) 22... Bf6 {[%emt 0:00:49]} 23. Bb4 {[%emt 0:02:25]} Rfd8 {[%emt 0:02:41]} 24. Ne3 {[%emt 0:02:22]} (24. exd5 $142 Rxd5 25. Ne3) 24... dxe4 {[%emt 0:03:06]} 25. Ba5 {[%emt 0:02:37]} Re8 {[%emt 0:01:37]} 26. Ng4 {[%emt 0:02:13]} Bg5 {[%emt 0:02:47]} 27. Nxe5 {[%emt 0:02:40]} Bxc1 {[%emt 0:00:38]} 28. Nxd7 {[%emt 0:00:07]} Bxb2 {[%emt 0:00:32]} 29. Kd2 {[%emt 0:00:57]} Bd4 {[%emt 0:02:15]} 30. Bb6 {[%emt 0:00:06]} Bxb6 {[%emt 0:03:00]} 31. Nxb6 {[%emt 0:02:31]} f5 {[%emt 0:01:30]} 32. Rc1 {[%emt 0:01:08]} f4 {[%emt 0:02:09]} 33. Rc7 {[%emt 0:00:46]} e3+ {[%emt 0:00:39] Weighted Error Value: White=0.58/Black=0.33.  Loses game:     	White=1     	---        Mistake:       	White=5     	Black=2      OK:         	White=7     	Black=13     Best:        	White=4     	Black=4      Strong:       	---       	Black=2} 0-1

[Event "French-ch U16-U18 2024"]
[Site "Agen"]
[Date "2024.04.17"]
[Round "5.12"]
[White "Diez, Agathe"]
[Black "Milojevic-Daim, Lola-Shaina"]
[Result "0-1"]
[ECO "D10"]
[WhiteElo "1954"]
[BlackElo "1867"]
[Annotator "TA"]
[PlyCount "118"]
[EventDate "2024.04.14"]
[EventType "swiss"]
[EventCountry "FRA"]
[SourceTitle "playchess.com"]
[Source "ChessBase"]
[SourceQuality "1"]
[TimeControl "5400+30"]

{[%evp 13,118,23,21,24,16,18,16,14,14,0,0,-24,-11,-17,-15,-14,-15,-18,-20,-15,111,4,0,-2,8,4,40,-15,-6,-1,16,-17,30,0,14,0,0,0,0,0,0,0,1,0,13,8,93,72,232,239,317,129,498,536,613,371,315,171,543,485,550,542,1114,829,782,643,864,383,341,259,237,177,210,206,199,185,239,98,268,0,0,0,0,-12850,-29940,-5385,-5085,-29961,-29961,-29970,-29971,-29971,-29966,-29974,-29975,-29978,-29979,-29984,-29982,-29980,-29982,-29983,-29984,-29984,-29985,-29985,-29986]} 1. d4 {[%emt 0:00:03]} d5 {[%emt 0:00:17]} 2. c4 {[%emt 0:00:08]} c6 {[%emt 0:00:12]} 3. cxd5 {[%emt 0:00:12]} cxd5 {[%emt 0:00:08]} 4. Nc3 {[%emt 0:00:27]} Nf6 {[%emt 0:00:25]} 5. Bf4 {[%emt 0:00:16]} Nc6 {[%emt 0:00:29]} 6. e3 {[%emt 0:00:14]} Bf5 {[%emt 0:02:08]} 7. Qb3 {[%emt 0:03:14]} Na5 {[%emt 0:06:13]} 8. Qa4+ {[%emt 0:00:40]} Bd7 {[%emt 0:01:07]} 9. Qc2 {[%emt 0:00:38]} Rc8 {[%emt 0:04:05]} 10. Bd3 {[%emt 0:12:06] The position is equal.} e6 {[%emt 0:04:39]} 11. a3 {[%emt 0:08:09]} Qb6 {[%emt 0:17:09]} 12. b4 {[%emt 0:08:09]} (12. Nf3 $5) 12... Nc4 {[%emt 0:05:59][%cal Oc4a3]} 13. Nge2 {[%emt 0:01:15]} Be7 {[%emt 0:11:24]} 14. O-O {[%emt 0:15:32]} Nh5 {[%emt 0:11:07]} 15. Rfc1 {[%emt 0:06:51]} Nxf4 {[%emt 0:09:29]} 16. Nxf4 {[%emt 0:01:13]} Bd6 {[%emt 0:01:22]} (16... Qd6 $11 {keeps the balance.}) 17. Nh5 {[%emt 0:10:48]} (17. Nfxd5 $16 Qd8 (17... exd5 $2 18. Nxd5 Qd8 19. Bxc4 $18) 18. Nf4) 17... Kf8 $11 {[%emt 0:06:45]} 18. Qe2 {[%emt 0:03:04]} Qd8 {[%emt 0:04:37]} 19. e4 {[%emt 0:10:23]} g6 {[%emt 0:02:15]} 20. Ng3 {[%emt 0:04:01]} (20. exd5 $14 exd5 21. Ng3 (21. Nxd5 Nb6 $14)) 20... Bf4 {[%emt 0:04:46]} 21. Rc2 {[%emt 0:08:44]} Nb6 {[%emt 0:00:38]} 22. Qf3 {[%emt 0:01:27]} Bxg3 {[%emt 0:02:29]} (22... Bg5 $142) 23. hxg3 {[%emt 0:02:12]} (23. Qxg3 {with more complications.} Kg7 24. Rac1 Qe7 25. Qe5+) 23... dxe4 {[%emt 0:01:24]} 24. Nxe4 {[%emt 0:00:37] [#] Nd6 is the strong threat.} Rxc2 {[%emt 0:00:27]} 25. Bxc2 {[%emt 0:00:05]} Bc6 {[%emt 0:00:22]} 26. Qf4 {[%emt 0:01:38]} Bxe4 {[%emt 0:01:42]} 27. Qxe4 $40 {[%emt 0:00:12][%mdl 128] Black needs to defend precisely.} Qd5 {[%emt 0:00:50]} 28. Qf4 {[%emt 0:00:36]} (28. Qe5 {simplifies} Qxe5 29. dxe5 Nc4 30. f4) 28... Ke7 {[%emt 0:00:48]} 29. Rd1 {[%emt 0:00:51][%cal Ba1d1,Bd1c1,Bc1c7][%mdl 32] Black should prevent Be4.} Qd6 {[%emt 0:00:37]} (29... Rc8 $11 30. Be4 Qb3) 30. Qg5+ {[%emt 0:00:44]} f6 $2 {[%emt 0:00:32]} (30... Kd7 $16) 31. Qh6 $18 {[%emt 0:00:24] aiming for Qg7+.} Qd8 {[%emt 0:00:51]} 32. Bb3 {[%emt 0:00:48]} (32. Qg7+ $18 Kd6 33. Re1 (33. Qxb7 Qd7 $18)) 32... Qf8 $2 {[%emt 0:00:30][%mdl 8192]} (32... Kf7 $16 33. Rc1 Qd6) 33. Qe3 {[%emt 0:00:33]} Qc8 {[%emt 0:00:25]} 34. Rc1 {[%emt 0:00:23]} Qd7 {[%emt 0:00:22]} 35. Qh6 {[%emt 0:00:49] Against Rf8} (35. Rc7 $142 Qxc7 36. Qxe6+ (36. Bxe6 $2 Rd8 $19) 36... Kd8 37. Qxf6+ Qe7 38. Qxh8+ Kc7 39. Bg8) 35... Rf8 $2 {[%emt 0:00:21]} (35... Kf7 {is a better chance.} 36. a4 Nd5 37. Bxd5 exd5) 36. Qxh7+ {[%emt 0:00:10]} Rf7 {[%emt 0:00:05]} 37. Qxg6 {[%emt 0:00:21]} Qxd4 {[%emt 0:00:24]} 38. Rc7+ {[%emt 0:00:41]} Nd7 {[%emt 0:00:15]} 39. Ba4 {[%emt 0:00:06]} Kd6 {[%emt 0:00:58]} 40. Qxf7 {[%emt 0:00:18]} (40. Rxb7 $2 Ne5 41. Rxf7 Qa1+ (41... Nxg6 $2 42. Rd7+ Ke5 43. Rxd4 $18) 42. Kh2 Nxg6 43. Rd7+ Ke5 44. Rxa7 Qd4 (44... Qxa3 45. Ra5+ Kd4 46. Bc2 $15) 45. Ra5+ Kd6 46. Ra6+ Ke7 $19) (40. Rc1 $142 Rf8 41. Qc2 (41. Rd1 Qxd1+ 42. Bxd1 Rc8 $18)) 40... Kxc7 {[%emt 0:00:05]} 41. Qxe6 {[%emt 0:00:31][%mdl 4096] Endgame. Strongly threatening Bxd7. KQB-KQN} Ne5 {[%emt 0:00:37]} 42. Qa2 {[%emt 0:00:25]} (42. Qxf6 $2 Qa1+ 43. Kh2 Ng4+ 44. Kh3 Nxf6 $19 (44... Qxf6 $2 45. Kxg4 Qxf2 46. Kh3 $19)) 42... a6 {[%emt 0:01:08]} 43. Qc2+ {[%emt 0:00:19]} Kb8 {[%emt 0:00:17]} 44. Qd1 {[%emt 0:00:24] Prevents Qa1} Nd3 {[%emt 0:00:38]} (44... Qb2 $142 45. f4 Nc4) 45. Qf3 {[%emt 0:01:04]} (45. Qd2 $18) 45... f5 $2 {[%emt 0:00:31]} 46. Bc2 $2 {[%emt 0:01:02]} ({Only move:} 46. Qxf5 $18 {Threatens to win with Bc2.} Qa1+ 47. Kh2 Nxf2 48. Qf4+ (48. Qxf2 Qh8+ 49. Kg1 Qa1+ $11) 48... Kc8 49. g4 (49. Qxf2 Qh8+ 50. Kg1 Qa1+ $11)) 46... Ne1 $11 {[%emt 0:00:41][%csl LRc2,LRf3]} 47. Qxf5 {[%emt 0:00:41]} Nxc2 {[%emt 0:00:05]} 48. Qf4+ $2 {[%emt 0:00:21][%mdl 8192]} (48. Qxc2 $11 Qa1+ 49. Kh2 Qh8+ 50. Kg1 Qa1+ 51. Kh2 Qh8+ 52. Kg1 Qa1+) 48... Qxf4 $19 {[%emt 0:00:10]} 49. gxf4 {[%emt 0:00:03]} Nxa3 {[%emt 0:00:07] ( -> ...Kc7). KN-KP} 50. g4 {[%emt 0:00:11]} Kc7 {[%emt 0:00:03] Black mates.} 51. g5 {[%emt 0:00:15]} Kd7 {[%emt 0:00:15]} ({But not} 51... Nc2 $2 52. g6 Nxb4 53. g7 $18) 52. Kg2 {[%emt 0:00:25]} Ke6 {[%emt 0:00:23]} 53. Kg3 {[%emt 0:00:10]} Kf5 {[%emt 0:00:21]} 54. Kh4 {[%emt 0:00:09]} Nc2 {[%emt 0:01:15]} (54... Kxf4 $2 {loses.} 55. g6 $18) 55. Kh5 {[%emt 0:00:25]} Nd4 {[%emt 0:00:13]} 56. g6 {[%emt 0:01:26]} Ne6 {[%emt 0:00:04]} (56... Kxf4 $2 {too greedy.} 57. g7 $18) 57. Kh6 {[%emt 0:00:14]} b6 {[%emt 0:00:19]} 58. g7 {[%emt 0:00:14] [#]} Nxg7 $1 {[%emt 0:00:04][%mdl 512]} 59. Kxg7 {[%emt 0:00:04]} a5 {[%emt 0:00:03] Weighted Error Value: White=0.58/Black=0.42.  Loses game:     	White=1     	Black=2      Missed win:     	White=2     	---        Mistake:       	White=3     	Black=6      Inaccurate:     	White=3     	Black=3      OK:         	White=11    	Black=14     Best:        	White=2     	Black=3} 0-1